[Event "7th Iberoamerican-ch 2019"]
[Site "Linares"]
[Date "2019.08.17"]
[Round "8.35"]
[White "Jimenez Bernal, Francisco"]
[Black "Collado Barbas, Laura"]
[Result "1/2-1/2"]
[ECO "D31"]
[WhiteElo "2222"]
[BlackElo "2070"]
[Annotator "NA"]
[PlyCount "80"]
[EventDate "2019.08.10"]
[EventType "swiss"]
[EventCountry "ESP"]
[SourceTitle "playchess.com"]
[Source "ChessBase"]
[SourceQuality "1"]
[TimeControl "5400+30"]

1. d4 {[%emt 0:00:00]} d5 {[%emt 0:00:00]} 2. c4 {[%emt 0:00:00]} e6 {[%emt 0:00:00]} 3. Nc3 {[%emt 0:00:00]} c6 {[%emt 0:00:00]} 4. e4 {[%emt 0:01:04]} dxe4 {[%emt 0:00:18]} 5. Nxe4 {[%emt 0:00:06]} Bb4+ {[%emt 0:00:07]} 6. Bd2 {[%emt 0:00:14]} Qxd4 {[%emt 0:00:16]} 7. Bxb4 {[%emt 0:00:06]} Qxe4+ {[%emt 0:00:03]} 8. Ne2 {[%emt 0:00:15]} Na6 {[%emt 0:00:32]} 9. Bf8 {[%emt 0:07:01]} Ne7 {[%emt 0:00:18]} 10. Bxg7 {[%emt 0:00:46]} Nb4 {[%emt 0:00:12]} 11. Qd6 {[%emt 0:07:32]} Nc2+ {[%emt 0:10:12]} 12. Kd2 {[%emt 0:00:14]} Nxa1 {[%emt 0:01:27]} 13. Bxh8 {[%emt 0:00:21]} Qc2+ {[%emt 0:08:01]} 14. Ke1 {[%emt 0:00:42]} Qb1+ {[%emt 0:00:51]} 15. Qd1 {[%emt 0:03:55]} Qxa2 {[%emt 0:03:04]} 16. Nc1 {[%emt 0:09:46]} Qa6 {[%emt 0:05:17]} 17. Bd3 {[%emt 0:38:15]} e5 {[%emt 0:04:18]} 18. Bxe5 {[%emt 0:08:08]} Be6 {[%emt 0:02:31]} 19. Bf6 {[%emt 0:01:54]} Rd8 {[%emt 0:16:39]} 20. Qe2 {[%emt 0:01:12]} Qa4 {[%emt 0:04:39]} 21. f4 {[%emt 0:03:39]} Nb3 {[%emt 0:05:07]} 22. Nxb3 {[%emt 0:01:20]} Qxb3 {[%emt 0:00:16]} 23. Bc3 {[%emt 0:00:05]} Bg4 {[%emt 0:04:29]} 24. Bc2 {[%emt 0:01:42]} Qxc3+ {[%emt 0:06:04]} 25. bxc3 {[%emt 0:00:03]} Bxe2 {[%emt 0:00:06]} 26. Kxe2 {[%emt 0:00:05]} h6 {[%emt 0:00:30]} 27. g4 {[%emt 0:00:08]} f6 {[%emt 0:02:40]} 28. Be4 {[%emt 0:02:01]} Kf7 {[%emt 0:02:45]} 29. Rb1 {[%emt 0:01:04]} Rd7 {[%emt 0:00:41]} 30. Ke3 {[%emt 0:00:20]} f5 {[%emt 0:03:22]} 31. Bf3 {[%emt 0:02:54]} Nc8 {[%emt 0:03:37]} 32. c5 {[%emt 0:00:45]} Ne7 {[%emt 0:02:29]} 33. c4 {[%emt 0:00:02]} Kf6 {[%emt 0:04:58]} 34. h3 {[%emt 0:00:02]} Ng6 {[%emt 0:01:06]} 35. gxf5 {[%emt 0:01:41]} Re7+ {[%emt 0:01:12]} 36. Be4 {[%emt 0:05:41]} Nh4 {[%emt 0:00:19]} 37. Rd1 {[%emt 0:01:35]} Nxf5+ {[%emt 0:02:35]} 38. Kf3 {[%emt 0:00:02]} Nh4+ {[%emt 0:01:24]} 39. Ke3 {[%emt 0:00:02]} Nf5+ {[%emt 0:00:45]} 40. Kf3 {[%emt 0:00:05]} Nh4+ {[%emt 0:00:24]} 1/2-1/2

[Event "7th Iberoamerican-ch 2019"]
[Site "Linares"]
[Date "2019.08.17"]
[Round "8.36"]
[White "Martinez-Conde Hernandez, Carlos"]
[Black "Rodriguez Del Cerro, Ricardo"]
[Result "1-0"]
[ECO "B33"]
[WhiteElo "2046"]
[BlackElo "2184"]
[Annotator "NA"]
[PlyCount "67"]
[EventDate "2019.08.10"]
[EventType "swiss"]
[EventCountry "ESP"]
[SourceTitle "playchess.com"]
[Source "ChessBase"]
[SourceQuality "1"]
[TimeControl "5400+30"]

1. e4 {[%emt 0:00:00]} c5 {[%emt 0:03:28]} 2. Nf3 {[%emt 0:00:32]} Nc6 {[%emt 0:00:13]} 3. d4 {[%emt 0:00:05]} cxd4 {[%emt 0:00:06]} 4. Nxd4 {[%emt 0:00:03]} Nf6 {[%emt 0:00:11]} 5. Nc3 {[%emt 0:00:17]} e5 {[%emt 0:00:11]} 6. Ndb5 {[%emt 0:00:17]} d6 {[%emt 0:00:06]} 7. Bg5 {[%emt 0:00:11]} a6 {[%emt 0:00:10]} 8. Na3 {[%emt 0:00:11]} b5 {[%emt 0:00:05]} 9. Nd5 {[%emt 0:00:10]} Be7 {[%emt 0:00:06]} 10. Bxf6 {[%emt 0:00:04]} Bxf6 {[%emt 0:00:05]} 11. c4 {[%emt 0:00:21]} b4 {[%emt 0:00:04]} 12. Nc2 {[%emt 0:00:03]} O-O {[%emt 0:00:06]} 13. g3 {[%emt 0:00:20]} Bg5 {[%emt 0:00:05]} 14. Bg2 {[%emt 0:00:10]} Qa5 {[%emt 0:02:19]} 15. O-O {[%emt 0:00:24]} Qc5 {[%emt 0:01:42]} 16. Kh1 {[%emt 0:00:39]} a5 {[%emt 0:04:19]} 17. f4 {[%emt 0:08:07]} Bh6 {[%emt 0:08:04]} 18. Nce3 {[%emt 0:07:09]} Kh8 {[%emt 0:12:00]} 19. Nf5 {[%emt 0:06:26]} Bxf5 {[%emt 0:02:47]} 20. exf5 {[%emt 0:00:03]} Ra7 {[%emt 0:15:57]} 21. Qh5 {[%emt 0:17:05]} exf4 {[%emt 0:03:00]} 22. gxf4 {[%emt 0:13:01]} Qxc4 {[%emt 0:09:15]} 23. Rac1 {[%emt 0:03:14]} Qb5 {[%emt 0:01:26]} 24. f6 {[%emt 0:00:38]} Nd4 {[%emt 0:01:46]} 25. Rce1 {[%emt 0:06:52]} Re8 {[%emt 0:11:59]} 26. Nb6 {[%emt 0:11:12]} Rb8 {[%emt 0:03:07]} 27. Nd5 {[%emt 0:04:06]} Ne6 {[%emt 0:04:10]} 28. f5 {[%emt 0:02:32]} Nc5 {[%emt 0:03:29]} 29. Re7 {[%emt 0:07:06]} Rxe7 {[%emt 0:06:28]} 30. fxe7 {[%emt 0:00:02]} Qd7 {[%emt 0:03:42]} 31. Re1 {[%emt 0:03:03]} Nd3 {[%emt 0:00:48]} 32. Nf6 {[%emt 0:06:04]} gxf6 {[%emt 0:01:10]} 33. Qxh6 {[%emt 0:00:01]} Nxe1 {[%emt 0:00:10]} 34. Qf8+ {[%emt 0:00:05]} 1-0

[Event "7th Iberoamerican-ch 2019"]
[Site "Linares"]
[Date "2019.08.17"]
[Round "8.37"]
[White "Torres Sanchez, Jose"]
[Black "Garcia Morales, Ivette Ale"]
[Result "1-0"]
[ECO "C00"]
[WhiteElo "2304"]
[BlackElo "1988"]
[Annotator "NA"]
[PlyCount "59"]
[EventDate "2019.08.10"]
[EventType "swiss"]
[EventCountry "ESP"]
[SourceTitle "playchess.com"]
[Source "ChessBase"]
[SourceQuality "1"]
[TimeControl "5400+30"]

1. e4 {[%emt 0:00:00]} e6 {[%emt 0:02:27]} 2. f4 {[%emt 0:00:22]} d5 {[%emt 0:00:05]} 3. e5 {[%emt 0:00:14]} c5 {[%emt 0:00:11]} 4. Nf3 {[%emt 0:00:10]} Nc6 {[%emt 0:00:54]} 5. c3 {[%emt 0:00:19]} f6 {[%emt 0:02:54]} 6. d4 {[%emt 0:01:01]} cxd4 {[%emt 0:02:57]} 7. cxd4 {[%emt 0:00:24]} g6 {[%emt 0:02:58]} 8. Nc3 {[%emt 0:00:22]} Nh6 {[%emt 0:04:09]} 9. h4 {[%emt 0:02:52]} Nf5 {[%emt 0:11:12]} 10. g4 {[%emt 0:10:52]} Ng3 {[%emt 0:00:46]} 11. Rh3 {[%emt 0:00:30]} Nxf1 {[%emt 0:00:08]} 12. Kxf1 {[%emt 0:08:29]} Bd7 {[%emt 0:11:39]} 13. h5 {[%emt 0:08:58]} g5 {[%emt 0:08:53]} 14. Kg1 {[%emt 0:12:30]} Qb6 {[%emt 0:25:15]} 15. Na4 {[%emt 0:06:00]} Qc7 {[%emt 0:01:55]} 16. Be3 {[%emt 0:02:21]} gxf4 {[%emt 0:04:37]} 17. Bxf4 {[%emt 0:00:08]} Rg8 {[%emt 0:00:12]} 18. Rg3 {[%emt 0:01:10]} O-O-O {[%emt 0:00:09]} 19. Rc1 {[%emt 0:00:56]} Kb8 20. a3 fxe5 {[%emt 0:05:27]} 21. Nxe5 {[%emt 0:00:51]} Bd6 {[%emt 0:00:06]} 22. Nc5 {[%emt 0:00:54]} Rgf8 {[%emt 0:00:17]} 23. Nxc6+ {[%emt 0:11:30]} Qxc6 {[%emt 0:03:38]} 24. Nxe6 {[%emt 0:03:58]} Qb6 {[%emt 0:00:20]} 25. Rb3 {[%emt 0:00:40]} Bb5 {[%emt 0:02:07]} 26. Rxb5 {[%emt 0:06:35]} Qxb5 {[%emt 0:02:26]} 27. Bxd6+ {[%emt 0:00:13]} Rxd6 {[%emt 0:00:04]} 28. Nxf8 {[%emt 0:00:13]} Qe8 {[%emt 0:01:42]} 29. Qf3 {[%emt 0:00:25]} Rb6 {[%emt 0:02:48]} 30. Nd7+ {[%emt 0:00:45]} 1-0

[Event "7th Iberoamerican-ch 2019"]
[Site "Linares"]
[Date "2019.08.17"]
[Round "8.38"]
[White "Castillo Gallego, Sergio"]
[Black "Alvarez Morales, Miguel"]
[Result "1-0"]
[ECO "B43"]
[WhiteElo "2203"]
[BlackElo "1965"]
[Annotator "NA"]
[PlyCount "47"]
[EventDate "2019.08.10"]
[EventType "swiss"]
[EventCountry "ESP"]
[SourceTitle "playchess.com"]
[Source "ChessBase"]
[SourceQuality "1"]
[TimeControl "5400+30"]

1. e4 {[%emt 0:00:00]} c5 {[%emt 0:00:00]} 2. Nf3 {[%emt 0:00:00]} e6 {[%emt 0:00:00]} 3. d4 {[%emt 0:00:15]} cxd4 {[%emt 0:00:00]} 4. Nxd4 {[%emt 0:00:07]} a6 {[%emt 0:00:00]} 5. Nc3 {[%emt 0:00:27]} Qc7 {[%emt 0:00:00]} 6. Qf3 {[%emt 0:00:42]} Nf6 {[%emt 0:00:26]} 7. Bg5 {[%emt 0:01:20]} Be7 {[%emt 0:00:26]} 8. O-O-O {[%emt 0:00:39]} d6 {[%emt 0:00:06]} 9. Be2 {[%emt 0:00:30]} Nbd7 {[%emt 0:00:03]} 10. Rhe1 {[%emt 0:00:20]} b5 {[%emt 0:00:55]} 11. e5 {[%emt 0:00:30]} Bb7 {[%emt 0:02:14]} 12. exf6 {[%emt 0:00:12]} Bxf3 {[%emt 0:01:21]} 13. Bxf3 {[%emt 0:00:06]} gxf6 {[%emt 0:00:14]} 14. Rxe6 {[%emt 0:00:31]} fxe6 {[%emt 0:03:23]} 15. Nxe6 {[%emt 0:00:14]} Ne5 {[%emt 0:02:29]} 16. Nxc7+ {[%emt 0:01:22]} Kd7 {[%emt 0:00:02]} 17. Nxa8 {[%emt 0:01:55]} Nxf3 {[%emt 0:00:01]} 18. Nb6+ {[%emt 0:01:58]} Kc6 {[%emt 0:00:02]} 19. Nbd5 {[%emt 0:02:37]} Bd8 {[%emt 0:00:25]} 20. Bxf6 {[%emt 0:01:06]} Bxf6 {[%emt 0:00:06]} 21. Nxf6 {[%emt 0:00:56]} Ne5 {[%emt 0:00:24]} 22. Nce4 {[%emt 0:00:53]} Nf7 {[%emt 0:00:33]} 23. g4 {[%emt 0:01:11]} h6 {[%emt 0:00:18]} 24. f4 {[%emt 0:00:17] Kd5} 1-0

[Event "7th Iberoamerican-ch 2019"]
[Site "Linares"]
[Date "2019.08.17"]
[Round "8.39"]
[White "Arroyo Rodriguez, Jesus"]
[Black "Riquelme Valero, Manuel Damian"]
[Result "1-0"]
[ECO "B10"]
[WhiteElo "2126"]
[BlackElo "2157"]
[Annotator "NA"]
[PlyCount "80"]
[EventDate "2019.08.10"]
[EventType "swiss"]
[EventCountry "ESP"]
[SourceTitle "playchess.com"]
[Source "ChessBase"]
[SourceQuality "1"]
[TimeControl "5400+30"]

1. e4 c6 2. Nc3 d5 {[%emt 0:07:25]} 3. Nf3 {[%emt 0:00:07]} dxe4 {[%emt 0:00:00]} 4. Nxe4 {[%emt 0:04:26]} Nf6 {[%emt 0:00:00]} 5. Qe2 {[%emt 0:00:23]} Nxe4 {[%emt 0:00:00]} 6. Qxe4 {[%emt 0:00:03]} Qd5 {[%emt 0:00:00]} 7. Qf4 {[%emt 0:00:04]} Qf5 {[%emt 0:00:00]} 8. Qe3 {[%emt 0:01:10]} Qxc2 {[%emt 0:00:00]} 9. Bd3 {[%emt 0:00:08]} Qa4 {[%emt 0:00:00]} 10. b3 {[%emt 0:00:08]} Qg4 {[%emt 0:00:00]} 11. O-O {[%emt 0:00:42]} Qe6 {[%emt 0:00:00]} 12. Bc4 {[%emt 0:09:50]} Qxe3 {[%emt 0:00:00]} 13. fxe3 {[%emt 0:00:06]} f6 {[%emt 0:00:00]} 14. a4 {[%emt 0:01:30]} b6 {[%emt 0:09:51]} 15. b4 {[%emt 0:08:15]} a5 {[%emt 0:04:47]} 16. b5 {[%emt 0:01:20]} c5 {[%emt 0:00:30]} 17. d4 {[%emt 0:01:19]} e6 {[%emt 0:02:43]} 18. Kh1 {[%emt 0:02:42]} Bd6 {[%emt 0:02:08]} 19. Ba3 {[%emt 0:04:43]} Ke7 {[%emt 0:03:09]} 20. e4 {[%emt 0:02:13]} cxd4 {[%emt 0:01:02]} 21. e5 {[%emt 0:04:59]} Bxa3 {[%emt 0:00:18]} 22. Rxa3 {[%emt 0:00:21]} f5 {[%emt 0:05:41]} 23. Nxd4 {[%emt 0:00:43]} Rd8 {[%emt 0:00:12]} 24. Rd3 {[%emt 0:02:48]} Ra7 {[%emt 0:00:31]} 25. Rfd1 {[%emt 0:00:51]} Rad7 {[%emt 0:06:41]} 26. Kg1 {[%emt 0:05:04]} Bb7 {[%emt 0:01:58]} 27. Bxe6 {[%emt 0:00:26]} Be4 {[%emt 0:04:59]} 28. Bxd7 {[%emt 0:02:26]} Bxd3 {[%emt 0:01:57]} 29. Nc6+ {[%emt 0:05:47]} Nxc6 {[%emt 0:00:49]} 30. bxc6 {[%emt 0:01:05]} Ba6 {[%emt 0:00:45]} 31. e6 {[%emt 0:02:36]} g5 {[%emt 0:02:15]} 32. Kf2 {[%emt 0:04:19]} Rf8 {[%emt 0:01:18]} 33. c7 {[%emt 0:02:34]} f4 {[%emt 0:01:22]} 34. Rd5 {[%emt 0:05:42]} h6 {[%emt 0:01:40]} 35. h4 {[%emt 0:00:48]} Rg8 {[%emt 0:01:23]} 36. hxg5 {[%emt 0:01:23]} hxg5 {[%emt 0:00:14]} 37. Rf5 {[%emt 0:00:36]} Kd6 {[%emt 0:01:15]} 38. Rf7 {[%emt 0:01:15]} Bc8 {[%emt 0:00:53]} 39. Bxc8 {[%emt 0:02:55]} Rxc8 {[%emt 0:00:09]} 40. e7 {[%emt 0:00:19]} Kd5 1-0

[Event "7th Iberoamerican-ch 2019"]
[Site "Linares"]
[Date "2019.08.17"]
[Round "8.40"]
[White "Gomez Barrera, Javiera Belen"]
[Black "Gil Quilez, Sonia"]
[Result "0-1"]
[ECO "C11"]
[WhiteElo "2156"]
[BlackElo "2102"]
[Annotator "NA"]
[PlyCount "124"]
[EventDate "2019.08.10"]
[EventType "swiss"]
[EventCountry "ESP"]
[SourceTitle "playchess.com"]
[Source "ChessBase"]
[SourceQuality "1"]
[TimeControl "5400+30"]

1. e4 e6 2. d4 d5 3. Nc3 Nf6 4. e5 Nfd7 5. Nce2 c5 {[%emt 0:01:37]} 6. f4 {[%emt 0:01:40]} Nc6 {[%emt 0:00:30]} 7. c3 {[%emt 0:00:30]} cxd4 {[%emt 0:00:30]} 8. cxd4 {[%emt 0:00:30]} f6 {[%emt 0:00:30]} 9. Nf3 {[%emt 0:00:30]} Bb4+ {[%emt 0:00:30]} 10. Bd2 {[%emt 0:00:30]} Qb6 {[%emt 0:00:30]} 11. a3 {[%emt 0:00:30]} Bxd2+ {[%emt 0:00:30]} 12. Qxd2 {[%emt 0:00:30]} O-O {[%emt 0:00:30]} 13. b4 {[%emt 0:00:30]} a5 {[%emt 0:00:30]} 14. b5 {[%emt 0:41:33]} Qxb5 {[%emt 0:25:10]} 15. Nc3 {[%emt 0:00:30]} Qb6 {[%emt 0:00:04]} 16. Rb1 {[%emt 0:01:26]} Qd8 {[%emt 0:00:32]} 17. h4 {[%emt 0:07:09]} fxe5 {[%emt 0:07:50]} 18. fxe5 {[%emt 0:03:42]} h6 {[%emt 0:06:01]} 19. Nb5 {[%emt 0:00:30]} Rb8 {[%emt 0:02:47]} 20. Bd3 {[%emt 0:10:17]} Qe8 {[%emt 0:02:51]} 21. h5 {[%emt 0:07:41]} Qf7 22. Rh4 {[%emt 0:10:38]} Kh8 {[%emt 0:11:03]} 23. Nd6 {[%emt 0:08:25]} Qe7 {[%emt 0:00:31]} 24. Rg4 Rxf3 {[%emt 0:12:41]} 25. gxf3 {[%emt 0:02:50]} Ndxe5 {[%emt 0:03:25]} 26. dxe5 {[%emt 0:01:42]} Nxe5 {[%emt 0:01:02]} 27. Nxc8 {[%emt 0:00:30]} Qxa3 {[%emt 0:01:05]} 28. Be2 {[%emt 0:00:52]} Nxg4 {[%emt 0:01:15]} 29. Qc1 {[%emt 0:01:02]} Qxc1+ {[%emt 0:06:03]} 30. Rxc1 {[%emt 0:00:01]} Nf6 {[%emt 0:00:06]} 31. f4 {[%emt 0:00:58]} b5 {[%emt 0:01:40]} 32. Nd6 {[%emt 0:00:30]} b4 {[%emt 0:00:21]} 33. Rb1 {[%emt 0:00:32]} Kg8 {[%emt 0:01:35]} 34. Kd1 {[%emt 0:00:28]} Kf8 {[%emt 0:00:16]} 35. Kc2 {[%emt 0:00:31]} Ke7 {[%emt 0:00:41]} 36. Nb5 Nxh5 37. Na7 {[%emt 0:00:40]} Rb7 {[%emt 0:03:40]} 38. Nc6+ {[%emt 0:00:49]} Kd6 39. Nxa5 {[%emt 0:00:30]} Rc7+ {[%emt 0:01:51]} 40. Kd2 {[%emt 0:00:30]} Nxf4 {[%emt 0:01:15]} 41. Bf1 {[%emt 0:00:32]} Ra7 {[%emt 0:03:32]} 42. Rxb4 {[%emt 0:00:20]} Rxa5 {[%emt 0:00:23]} 43. Rxf4 {[%emt 0:00:02]} g5 {[%emt 0:00:44]} 44. Rf6 {[%emt 0:00:17]} Ra2+ {[%emt 0:00:04]} 45. Ke3 {[%emt 0:00:29]} Rh2 {[%emt 0:00:06]} 46. Kf3 {[%emt 0:00:18]} Ke5 47. Rg6 {[%emt 0:00:15]} Rh4 {[%emt 0:03:35]} 48. Kg3 Rf4 {[%emt 0:00:06]} 49. Be2 {[%emt 0:01:23]} Rf6 {[%emt 0:00:13]} 50. Rxf6 {[%emt 0:01:04]} Kxf6 {[%emt 0:00:02]} 51. Kg4 {[%emt 0:00:07]} Ke5 {[%emt 0:00:14]} 52. Bd1 {[%emt 0:01:13]} Ke4 {[%emt 0:00:26]} 53. Bc2+ {[%emt 0:00:02]} Kd4 {[%emt 0:03:33]} 54. Kh5 {[%emt 0:00:20]} e5 {[%emt 0:00:25]} 55. Bd1 {[%emt 0:00:33]} Ke4 {[%emt 0:00:30]} 56. Kxh6 {[%emt 0:00:58]} Kf4 {[%emt 0:00:05]} 57. Kg6 {[%emt 0:00:36]} g4 {[%emt 0:00:09]} 58. Be2 {[%emt 0:00:31]} g3 {[%emt 0:00:24]} 59. Bf1 {[%emt 0:00:13]} e4 {[%emt 0:00:11]} 60. Bg2 {[%emt 0:00:47]} d4 {[%emt 0:00:05]} 61. Kh5 {[%emt 0:00:23]} d3 62. Bf1 {[%emt 0:00:30]} d2 {[%emt 0:00:32]} 0-1

[Event "7th Iberoamerican-ch 2019"]
[Site "Linares"]
[Date "2019.08.18"]
[Round "9.3"]
[White "Flores, Diego"]
[Black "Cruz, Cristhian"]
[Result "1/2-1/2"]
[ECO "A35"]
[WhiteElo "2604"]
[BlackElo "2559"]
[Annotator "ChessBase"]
[PlyCount "166"]
[EventDate "2019.08.10"]
[EventType "swiss"]
[EventCountry "ESP"]
[SourceTitle "playchess.com"]
[Source "ChessBase"]
[SourceQuality "1"]
[TimeControl "5400+30"]

1. Nf3 {[%emt 0:00:10]} c5 {[%emt 0:06:30]} 2. c4 {[%emt 0:00:50]} Nc6 {[%emt 0:00:59]} 3. Nc3 {[%emt 0:00:35]} Nf6 {[%emt 0:00:07]} 4. g3 {[%emt 0:00:59]} d5 {[%emt 0:00:14]} 5. cxd5 {[%emt 0:00:16]} Nxd5 {[%emt 0:00:05]} 6. Bg2 {[%emt 0:00:18]} Nc7 {[%emt 0:00:42]} 7. a3 {[%emt 0:08:30]} g6 {[%emt 0:02:01]} 8. h4 {[%emt 0:04:48]} h6 {[%emt 0:00:15]} 9. d3 {[%emt 0:06:54]} Bg7 {[%emt 0:02:05]} 10. Bd2 {[%emt 0:05:51]} Bd7 {[%emt 0:14:05]} 11. Rb1 {[%emt 0:08:12]} Rc8 {[%emt 0:05:05]} 12. b4 {[%emt 0:09:00]} Nd4 {[%emt 0:10:44]} 13. bxc5 {[%emt 0:07:35]} Bc6 {[%emt 0:01:28]} 14. O-O {[%emt 0:02:10]} Nxf3+ {[%emt 0:01:31]} 15. Bxf3 {[%emt 0:00:10]} Bxf3 {[%emt 0:00:08]} 16. exf3 {[%emt 0:00:03]} O-O {[%emt 0:03:16]} 17. Rxb7 {[%emt 0:27:38]} Qxd3 {[%emt 0:32:33]} 18. Qe2 {[%emt 0:00:07]} Rfd8 {[%emt 0:00:30]} 19. Qxd3 {[%emt 0:00:10]} Rxd3 {[%emt 0:00:04]} 20. Nb1 {[%emt 0:00:05]} Bd4 {[%emt 0:01:02]} 21. Kg2 {[%emt 0:00:59]} Nd5 {[%emt 0:02:07]} 22. Rc1 {[%emt 0:03:23]} Rxc5 {[%emt 0:00:58]} 23. Rxc5 {[%emt 0:00:30]} Bxc5 {[%emt 0:00:03]} 24. Bxh6 {[%emt 0:00:16]} Bb6 {[%emt 0:00:28]} 25. a4 {[%emt 0:03:31]} Kh7 {[%emt 0:10:11]} 26. Bg5 {[%emt 0:01:05]} Rd1 {[%emt 0:00:59]} 27. Na3 {[%emt 0:02:21]} f6 {[%emt 0:04:17]} 28. Be3 {[%emt 0:01:09]} Ra1 {[%emt 0:00:15]} 29. Bxb6 {[%emt 0:01:16]} axb6 {[%emt 0:00:15]} 30. Nc4 {[%emt 0:00:36]} Kg7 {[%emt 0:00:47]} 31. Ne3 {[%emt 0:04:27]} Nxe3+ {[%emt 0:00:01]} 32. fxe3 {[%emt 0:00:06]} Kf7 {[%emt 0:00:03]} 33. g4 {[%emt 0:00:19]} Rxa4 {[%emt 0:00:39]} 34. Rxb6 {[%emt 0:00:02]} Ra2+ {[%emt 0:00:26]} 35. Kg3 {[%emt 0:00:01]} Re2 {[%emt 0:00:15]} 36. e4 {[%emt 0:01:08]} Re1 {[%emt 0:01:51]} 37. g5 {[%emt 0:01:07]} fxg5 {[%emt 0:00:56]} 38. hxg5 {[%emt 0:00:02]} Rg1+ {[%emt 0:00:08]} 39. Kf4 {[%emt 0:00:17]} Ra1 {[%emt 0:00:17]} 40. Rb2 {[%emt 0:02:17]} Ra5 {[%emt 0:00:34]} 41. Kg4 {[%emt 0:00:36]} Ra4 {[%emt 0:00:21]} 42. Rb5 {[%emt 0:00:30]} Rc4 {[%emt 0:00:13]} 43. Re5 {[%emt 0:00:12]} Rc1 {[%emt 0:00:25]} 44. Kf4 {[%emt 0:00:45]} Rc4 {[%emt 0:00:10]} 45. Ke3 {[%emt 0:00:31]} Rc3+ {[%emt 0:00:24]} 46. Kf4 {[%emt 0:00:06]} Ra3 {[%emt 0:00:17]} 47. Rd5 {[%emt 0:00:08]} Rb3 {[%emt 0:00:13]} 48. Kg4 {[%emt 0:00:28]} Rb4 {[%emt 0:00:36]} 49. Rd3 {[%emt 0:00:33]} Ra4 {[%emt 0:00:10]} 50. Re3 {[%emt 0:00:32]} Ra1 {[%emt 0:00:58]} 51. f4 {[%emt 0:01:14]} Rg1+ {[%emt 0:00:39]} 52. Rg3 {[%emt 0:00:16]} Re1 {[%emt 0:00:19]} 53. Kf3 {[%emt 0:00:09]} e5 {[%emt 0:02:11]} 54. f5 {[%emt 0:00:59]} Rf1+ {[%emt 0:00:17]} 55. Ke2 {[%emt 0:00:19]} Rf4 {[%emt 0:00:18]} 56. f6 {[%emt 0:00:05]} Rxe4+ {[%emt 0:00:06]} 57. Re3 {[%emt 0:00:06]} Ra4 {[%emt 0:00:21]} 58. Rxe5 {[%emt 0:00:05]} Rg4 {[%emt 0:01:36]} 59. Kf3 {[%emt 0:00:17]} Rg1 {[%emt 0:00:03]} 60. Ke4 {[%emt 0:00:30]} Re1+ {[%emt 0:00:19]} 61. Kd5 {[%emt 0:00:11]} Rd1+ {[%emt 0:00:17]} 62. Kc6 {[%emt 0:00:11]} Rc1+ {[%emt 0:00:12]} 63. Kd6 {[%emt 0:01:12]} Rd1+ {[%emt 0:00:11]} 64. Rd5 {[%emt 0:00:05]} Rg1 {[%emt 0:01:07]} 65. Ra5 {[%emt 0:00:57]} Rd1+ {[%emt 0:00:25]} 66. Ke5 {[%emt 0:00:16]} Re1+ {[%emt 0:00:26]} 67. Kf4 {[%emt 0:00:12]} Rf1+ {[%emt 0:00:29]} 68. Kg3 {[%emt 0:01:12]} Rg1+ {[%emt 0:00:38]} 69. Kf3 {[%emt 0:00:19]} Kf8 {[%emt 0:01:21]} 70. Re5 {[%emt 0:01:27]} Kf7 {[%emt 0:00:21]} 71. Re7+ {[%emt 0:01:18]} Kf8 {[%emt 0:00:04]} 72. Kf4 {[%emt 0:00:10]} Rf1+ {[%emt 0:00:22]} 73. Ke5 {[%emt 0:00:24]} Re1+ {[%emt 0:00:13]} 74. Kd6 {[%emt 0:00:06]} Rd1+ {[%emt 0:00:24]} 75. Kc6 {[%emt 0:00:22]} Rc1+ {[%emt 0:00:12]} 76. Kd5 {[%emt 0:01:24]} Rd1+ {[%emt 0:00:12]} 77. Ke4 {[%emt 0:00:28]} Re1+ {[%emt 0:00:08]} 78. Kf4 {[%emt 0:00:27]} Rf1+ {[%emt 0:00:10]} 79. Ke3 {[%emt 0:00:39]} Rf5 {[%emt 0:00:42]} 80. Rg7 {[%emt 0:00:22]} Rxg5 {[%emt 0:00:05]} 81. Ke4 {[%emt 0:00:06]} Rh5 {[%emt 0:00:28]} 82. Rxg6 {[%emt 0:00:24]} Kf7 {[%emt 0:00:04]} 83. Rg7+ {[%emt 0:00:09]} Kxf6 {[%emt 0:00:06]} 1/2-1/2

[Event "7th Iberoamerican-ch 2019"]
[Site "Linares"]
[Date "2019.08.18"]
[Round "9.4"]
[White "Krysa, Leandro"]
[Black "Salgado Lopez, Ivan"]
[Result "1/2-1/2"]
[ECO "A26"]
[WhiteElo "2516"]
[BlackElo "2596"]
[Annotator "ChessBase"]
[PlyCount "72"]
[EventDate "2019.08.10"]
[EventType "swiss"]
[EventCountry "ESP"]
[SourceTitle "playchess.com"]
[Source "ChessBase"]
[SourceQuality "1"]
[TimeControl "5400+30"]

1. c4 {[%emt 0:00:00]} e5 {[%emt 0:00:27]} 2. Nc3 {[%emt 0:00:00]} Nc6 {[%emt 0:01:24]} 3. g3 {[%emt 0:00:31]} g6 {[%emt 0:00:17]} 4. Bg2 {[%emt 0:00:26]} Bg7 {[%emt 0:00:05]} 5. d3 {[%emt 0:01:39]} d6 {[%emt 0:01:39]} 6. e3 {[%emt 0:00:13]} Nge7 {[%emt 0:00:24]} 7. Nge2 {[%emt 0:01:25]} Bg4 {[%emt 0:00:36]} 8. Rb1 {[%emt 0:01:49]} Qd7 {[%emt 0:02:19]} 9. Nd5 {[%emt 0:06:20]} O-O {[%emt 0:01:46]} 10. h3 {[%emt 0:02:41]} Be6 {[%emt 0:00:40]} 11. b4 {[%emt 0:00:15]} Nc8 {[%emt 0:03:49]} 12. h4 {[%emt 0:09:30]} Nd8 {[%emt 0:00:34]} 13. b5 {[%emt 0:00:23]} a6 {[%emt 0:08:49]} 14. a4 {[%emt 0:04:21]} axb5 {[%emt 0:02:37]} 15. axb5 {[%emt 0:00:59]} c6 {[%emt 0:00:13]} 16. bxc6 {[%emt 0:05:46]} bxc6 {[%emt 0:00:07]} 17. Ndc3 {[%emt 0:06:03]} d5 {[%emt 0:00:29]} 18. cxd5 {[%emt 0:10:52]} cxd5 {[%emt 0:00:20]} 19. Rb5 {[%emt 0:06:14]} Nd6 {[%emt 0:13:16]} 20. Rxd5 {[%emt 0:01:09]} Bxd5 {[%emt 0:00:38]} 21. Nxd5 {[%emt 0:00:05]} Ra1 {[%emt 0:02:04]} 22. h5 {[%emt 0:02:11]} Ne6 {[%emt 0:02:11]} 23. h6 {[%emt 0:05:58]} Bh8 {[%emt 0:00:46]} 24. Nec3 {[%emt 0:05:56]} e4 {[%emt 0:16:12]} 25. Nxe4 {[%emt 0:05:46]} Nxe4 {[%emt 0:02:35]} 26. dxe4 {[%emt 0:00:19]} Qa7 {[%emt 0:09:12]} 27. O-O {[%emt 0:01:16]} Rb8 {[%emt 0:08:02]} 28. Qc2 {[%emt 0:10:03]} Qc5 {[%emt 0:01:52]} 29. Qxc5 {[%emt 0:05:26]} Nxc5 {[%emt 0:00:35]} 30. Bd2 {[%emt 0:00:26]} Rxf1+ {[%emt 0:05:09]} 31. Kxf1 {[%emt 0:00:04]} Rb2 {[%emt 0:03:04]} 32. Ba5 {[%emt 0:01:58]} Ra2 {[%emt 0:05:10]} 33. Bc7 {[%emt 0:00:28]} Ra1+ {[%emt 0:04:23]} 34. Ke2 {[%emt 0:00:04]} Ra2+ {[%emt 0:00:01]} 35. Kf1 {[%emt 0:00:08]} Ra1+ {[%emt 0:03:28]} 36. Ke2 {[%emt 0:00:05]} Ra2+ {[%emt 0:00:04]} 1/2-1/2